fUSD/lending_fUSD_20240624
["ID","MTS","AMOUNT","RATE_DAILY","PERIOD"]
[330263779,1719214307171,-500.0,0.00021643,4]
[330263780,1719214307181,-1000.0,0.00021643,4]
[330263781,1719214307191,-907.22,0.00021643,4]
[330263782,1719214307201,-500.0,0.00021643,4]
[330263783,1719214307211,-500.0,0.00021643,4]
[330263784,1719214307221,-2994.74,0.00021643,4]
[330263785,1719214307230,-500.0,0.00021643,4]
[330263786,1719214307240,-3411.07,0.00021643,4]
[330263787,1719214307249,-500.0,0.00021643,4]
[330263788,1719214307258,-500.0,0.00021643,4]
[330263789,1719214307268,-1945.6,0.00021643,4]
[330263790,1719214307278,-500.0,0.00021643,4]
[330263791,1719214307288,-4149.12,0.00021643,4]
[330263792,1719214307297,-500.0,0.00021643,4]
[330263793,1719214307309,-500.0,0.00021643,4]
[330263794,1719214307318,-1616.06,0.00021643,4]
[330263795,1719214307327,-571.69,0.00021643,4]
[330263796,1719214307336,-887.92,0.00021643,4]
[330263797,1719214307346,-4933.56,0.00021643,4]
[330263798,1719214307356,-2530.75,0.00021643,4]
[330263799,1719214307366,-2643.82,0.00021643,4]
[330263800,1719214307376,-547.62,0.00021643,4]
[330263801,1719214307385,-500.0,0.00021643,4]
[330263802,1719214307395,-700.46,0.00021643,4]
[330263803,1719214307405,-500.0,0.00021643,4]
[330263804,1719214307414,-2119.33,0.00021643,4]
[330263805,1719214307424,-6552.44,0.00021643,4]
[330263806,1719214307433,-1255.88,0.00021643,4]
[330263807,1719214307443,-5199.55,0.00021643,4]
[330263808,1719214307452,-807.64,0.00021643,4]
[330263809,1719214307462,-500.0,0.00021643,4]
[330263810,1719214307471,-5313.84,0.00021643,4]
[330263811,1719214307481,-10226.28,0.00021643,4]
[330263812,1719214307491,-9675.59,0.00021643,4]
[330263813,1719214307501,-1578.26,0.00021643,4]
[330263814,1719214307510,-2304.39,0.00021643,4]
[330263815,1719214307520,-1515.67,0.00021643,4]
[330263816,1719214307529,-509.44403489,0.00021643,4]
[330263817,1719214307539,-860.22,0.00021643,4]
[330263818,1719214307549,-1413.93,0.00021643,4]
[330263819,1719214307559,-2577.54,0.00021643,4]
[330263820,1719214307570,-500.0,0.00021643,4]
[330263821,1719214307579,-500.0,0.00021643,4]
[330263822,1719214307588,-2480.87,0.00021643,4]
[330263823,1719214307598,-3485.47,0.00021643,4]
[330263824,1719214307607,-1675.26,0.00021643,4]
[330263825,1719214307621,-500.0,0.00021643,4]
[330263826,1719214307630,-6936.84,0.00021643,4]
[330263827,1719214307640,-1833.59,0.00021643,4]
[330263828,1719214307650,-638.36448053,0.00021643,4]
[330263829,1719214307663,-500.0,0.00021643,4]
[330263830,1719214307672,-978.19,0.00021643,4]
[330263831,1719214307682,-906.01,0.00021643,4]
[330263832,1719214307693,-500.0,0.00021643,4]
[330263833,1719214307703,-1148.69,0.00021643,4]
[330263834,1719214307712,-1282.27,0.00021643,4]
[330263835,1719214307722,-5805.71,0.00021643,4]
[330263836,1719214307731,-3390.41,0.00021643,4]
[330263837,1719214307740,-500.0,0.00021643,4]
[330263838,1719214307750,-558.54,0.00021643,4]
[330263839,1719214307759,-4960.34,0.00021643,4]
[330263840,1719214307767,-3724.94,0.00021643,4]
[330263841,1719214307777,-631.73,0.00021643,4]
[330263842,1719214307786,-2618.38,0.00021643,4]
[330263843,1719214307796,-6686.69,0.00021643,4]
[330263844,1719214307807,-3549.79,0.00021643,4]
[330263845,1719214307816,-683.84,0.00021643,4]
[330263846,1719214307826,-3505.82,0.00021643,4]
[330263847,1719214307838,-4601.22,0.00021643,4]
[330263848,1719214307848,-3007.89,0.00021643,4]
[330263849,1719214307858,-500.0,0.00021643,4]
[330263850,1719214307867,-5517.01,0.00021643,4]
[330263851,1719214307876,-3237.39,0.00021643,4]
[330263852,1719214307886,-5108.38,0.00021643,4]
[330263853,1719214307895,-2162.86,0.00021643,4]
[330263854,1719214307904,-500.0,0.00021643,4]
[330263855,1719214307914,-776.23,0.00021643,4]
[330263856,1719214307925,-1479.77,0.00021643,4]
[330263857,1719214307934,-822.04,0.00021643,4]
[330263858,1719214307944,-3213.19,0.00021643,4]
[330263859,1719214307953,-1437.16,0.00021643,4]
[330263860,1719214307963,-8580.64,0.00021643,4]
[330263861,1719214307973,-4077.0,0.00021643,4]
[330263862,1719214308048,-773.12,0.00021643,4]
[330263863,1719214308061,-522.29,0.00021643,4]
[330263864,1719214308070,-500.0,0.00021643,4]
[330263865,1719214308079,-1347.66,0.00021643,4]
[330263866,1719214308088,-3845.4,0.00021643,4]
[330263867,1719214308097,-599.26,0.00021643,4]
[330263868,1719214308107,-520.44,0.00021643,4]
[330263869,1719214308117,-653.28,0.00021643,4]
[330263870,1719214308126,-601.18,0.00021643,4]
[330263871,1719214308135,-4423.02,0.00021643,4]
[330263872,1719214308145,-1302.14,0.00021643,4]
[330263873,1719214308154,-1510.55,0.00021643,4]
[330263874,1719214308163,-4691.32,0.00021643,4]
[330263875,1719214308173,-1862.57,0.00021643,4]
[330263876,1719214308182,-500.0,0.00021643,4]
[330263877,1719214308191,-500.0,0.00021643,4]
[330263878,1719214308200,-3581.0,0.00021643,4]
[330263879,1719214308210,-4540.36,0.00021643,4]
[330263880,1719214308218,-3105.44,0.00021643,4]
[330263881,1719214308228,-500.0,0.00021643,4]
[330263882,1719214308237,-647.91,0.00021643,4]
[330263883,1719214308246,-775.75,0.00021643,4]
[330263884,1719214308255,-500.0,0.00021643,4]
[330263885,1719214308264,-551.02,0.00021643,4]
[330263886,1719214308273,-4542.28,0.00021643,4]
[330263887,1719214308282,-1450.78,0.00021643,4]
[330263888,1719214308292,-2168.61,0.00021643,4]
[330263889,1719214308302,-500.0,0.00021643,4]
[330263890,1719214308315,-500.0,0.00021643,4]
[330263891,1719214308325,-2528.62,0.00021643,4]
[330263892,1719214308335,-500.0,0.00021643,4]
[330263893,1719214308344,-500.0,0.00021643,2]
[330263894,1719214308354,-3511.4,0.00021643,4]
[330263895,1719214308363,-663.3,0.00021643,4]
[330263896,1719214308372,-500.0,0.00021643,4]
[330263897,1719214308382,-5536.21,0.00021643,4]
[330263898,1719214308392,-500.0,0.00021643,4]
[330263899,1719214308401,-2051.83,0.00021643,4]
[330263900,1719214308410,-3788.32,0.00021643,4]
[330263901,1719214308420,-500.0,0.00021643,4]
[330263902,1719214308429,-500.0,0.00021643,4]
[330263903,1719214308439,-738.9,0.00021643,4]
[330263904,1719214308448,-635.92,0.00021643,4]
[330263905,1719214308458,-607.75,0.00021643,4]
[330263906,1719214308467,-2983.25,0.00021643,4]
[330263907,1719214308476,-553.05,0.00021644,2]
[330263908,1719214308485,-527.14,0.00021644,2]
[330263909,1719214308495,-154.78,0.00021644,2]
[330263910,1719214308504,-184.908793,0.00021644,2]
[330263911,1719214308513,-500.0,0.00021665,2]
[330263912,1719214308522,-200.0,0.00021665,2]
[330263913,1719214308532,-150.0,0.00021671,2]
[330263914,1719214308542,-150.0,0.00021672,2]
[330263915,1719214308554,-150.0,0.00021684,2]
[330263916,1719214308563,-1476.0,0.000217,2]
[330263917,1719214308571,-500.0,0.00021704,2]
[330263918,1719214308580,-200.0,0.00021704,2]
[330263919,1719214308589,-501.0,0.0002171,2]
[330263920,1719214308598,-501.0,0.00021711,2]
[330263921,1719214308607,-501.0,0.00021713,2]
[330263922,1719214308619,-150.0,0.00021715,2]
[330263923,1719214308631,-150.0,0.0002173,2]
[330263924,1719214308640,-300.0,0.00021752,2]
[330263925,1719214308651,-953.03121734,0.00021797,2]
[330263926,1719214308661,-2001.53656651,0.000218,4]
[330263927,1719214308670,-164.31,0.00021807,2]
[330263928,1719214308679,-376.398091,0.00021862,2]
[330263929,1719214308688,-375.715617,0.00021862,2]
[330263930,1719214308697,-150.0,0.00021867,2]
[330263931,1719214308708,-1129.6994628,0.0002187,2]
[330263932,1719214308719,-153.81544928,0.0002187,2]
[330263933,1719214308727,-793.9803337,0.0002187,2]
[330263934,1719214308737,-382.060037,0.0002187,2]
[330263935,1719214308746,-15415.0991189,0.0002187,2]
[330263936,1719214308755,-1000.0,0.00021879,2]
[330263937,1719214308764,-2191.05603,0.0002188,2]
[330263938,1719214308773,-155.61182952,0.00021884,2]
[330263939,1719214308782,-809.8532711,0.00021885,2]
[330263940,1719214308791,-825.7262085,0.00021885,2]
[330263941,1719214308801,-389.6980285,0.00021885,2]
[330263942,1719214308812,-397.33602,0.00021885,2]
[330263943,1719214308822,-404.9740115,0.00021885,2]
[330263944,1719214308831,-412.612003,0.00021885,2]
[330263945,1719214308841,-420.2499945,0.00021885,2]
[330263946,1719214308850,-2000.0,0.000219,2]
[330263947,1719214308859,-489.0,0.000219,4]
[330263948,1719214308868,-250000.0,0.000219,5]
[330263949,1719214308877,-34409.78,0.000219,2]
[330263950,1719214308886,-194.3,0.000219,2]
[330263951,1719214308895,-309.0,0.000219,9]
[330263952,1719214308904,-1000.0,0.000219,2]
[330263953,1719214308913,-947.9211631,0.00021902,2]
[330263954,1719214308922,-841.5991459,0.00021902,2]
[330263955,1719214308932,-857.4720832,0.00021902,2]
[330263956,1719214308940,-873.3450206,0.00021902,2]
[330263957,1719214308949,-12886.4117882,0.00021902,2]
[330263958,1719214308959,-3026.43178738,0.00021904,2]
[330263959,1719214308969,-3106.94505996,0.00021914,2]
[330263960,1719214308978,-238.13830956,0.00021916,2]
[330263961,1719214308987,-500.0,0.00021917,4]
[330263962,1719214308996,-500.0,0.00021917,4]
[330263963,1719214309005,-500.0,0.00021917,4]
[330263964,1719214309015,-500.0,0.00021917,4]
[330263965,1719214309025,-579.2441144,0.00021917,4]
[330263966,1719214309034,-500.0,0.00021917,4]
[330263967,1719214309043,-500.0,0.00021917,4]
[330263968,1719214309053,-500.0,0.00021917,4]
[330263969,1719214309062,-500.0,0.00021917,4]
[330263970,1719214309071,-500.0,0.00021917,4]
[330263971,1719214309079,-500.0,0.00021917,4]
[330263972,1719214309088,-500.0,0.00021917,4]
[330263973,1719214309098,-500.0,0.00021917,4]
[330263974,1719214309107,-432.53,0.00021917,4]
[330263975,1719214309116,-270.38542091,0.00021917,2]
[330263976,1719214309125,-500.0,0.00021917,4]
[330263977,1719214309135,-459.96279841,0.00021917,4]
[330263978,1719214309144,-500.0,0.00021917,4]
[330263979,1719214309153,-500.0,0.00021917,4]
[330263980,1719214309166,-500.0,0.00021917,4]
[330263981,1719214309175,-200.0,0.00021917,2]
[330263982,1719214309184,-200.0,0.00021917,4]
[330263983,1719214309193,-200.0,0.00021917,4]
[330263984,1719214309202,-200.0,0.00021917,4]
[330263985,1719214309211,-200.0,0.00021917,4]
[330263986,1719214309220,-240.33272652,0.00021917,4]
[330263987,1719214309229,-500.0,0.00021917,4]
[330263988,1719214309238,-158.44613755,0.00021917,4]
[330263989,1719214309247,-638.22,0.00021917,4]
[330263990,1719214309257,-500.0,0.00021917,4]
[330263991,1719214309266,-500.0,0.00021917,4]
[330263992,1719214309275,-458.26,0.00021917,4]
[330263993,1719214309284,-379.06,0.00021917,4]
[330263994,1719214309293,-500.0,0.00021917,4]
[330263995,1719214309303,-500.0,0.00021917,4]
[330263996,1719214309312,-500.0,0.00021917,4]
[330263997,1719214309322,-500.0,0.00021917,4]
[330263998,1719214309331,-500.0,0.00021917,4]
[330263999,1719214309340,-382.64,0.00021917,4]
[330264000,1719214309349,-349.41,0.00021917,4]
[330264001,1719214309359,-500.0,0.00021917,4]
[330264002,1719214309368,-500.0,0.00021917,4]
[330264003,1719214309377,-281.10807607,0.00021917,4]
[330264004,1719214309387,-500.0,0.00021917,4]
[330264005,1719214309395,-200.0,0.00021917,7]
[330264006,1719214309405,-200.0,0.00021917,7]
[330264007,1719214309414,-200.0,0.00021917,7]
[330264008,1719214309423,-498.6,0.00021917,4]
[330264009,1719214309433,-200.0,0.00021917,7]
[330264010,1719214309443,-200.0,0.00021917,7]
[330264011,1719214309452,-200.0,0.00021917,7]
[330264012,1719214309462,-500.0,0.00021917,4]
[330264013,1719214309471,-200.0,0.00021917,7]
[330264014,1719214309480,-231.34,0.00021917,7]
[330264015,1719214309489,-500.0,0.00021917,4]
[330264016,1719214309498,-199.77,0.00021917,4]
[330264017,1719214309507,-500.0,0.00021917,4]
[330264018,1719214309517,-500.0,0.00021917,4]
[330264019,1719214309526,-328.25991267,0.00021917,4]
[330264020,1719214309535,-500.0,0.00021917,4]
[330264021,1719214309544,-500.0,0.00021917,4]
[330264022,1719214309556,-659.59,0.00021917,4]
[330264023,1719214309565,-500.0,0.00021917,4]
[330264024,1719214309574,-500.0,0.00021917,4]
[330264025,1719214309582,-500.0,0.00021917,4]
[330264026,1719214309591,-500.0,0.00021917,4]
[330264027,1719214309601,-500.0,0.00021917,4]
[330264028,1719214309610,-557.34,0.00021917,4]
[330264029,1719214309626,-500.0,0.00021917,4]
[330264030,1719214309635,-500.0,0.00021917,4]
[330264031,1719214309644,-563.41,0.00021917,4]
[330264032,1719214309653,-500.0,0.00021917,4]
[330264033,1719214309663,-500.0,0.00021917,4]
[330264034,1719214309672,-150.0,0.00021917,4]
[330264035,1719214309681,-286.45,0.00021917,4]
[330264036,1719214309692,-500.0,0.00021917,4]
[330264037,1719214309701,-855.7,0.00021917,4]
[330264038,1719214309711,-500.0,0.00021917,4]
[330264039,1719214309719,-500.0,0.00021917,4]
[330264040,1719214309728,-682.1,0.00021917,4]
[330264041,1719214309738,-500.0,0.00021917,4]
[330264042,1719214309747,-500.0,0.00021917,4]
[330264043,1719214309756,-500.0,0.00021917,4]
[330264044,1719214309765,-937.44,0.00021917,4]
[330264045,1719214309775,-500.0,0.00021917,4]
[330264046,1719214309784,-645.12,0.00021917,4]
[330264047,1719214309793,-768.8,0.00021917,4]
[330264048,1719214309803,-500.0,0.00021917,4]
[330264049,1719214309813,-2094.36,0.00021917,4]
[330264050,1719214309822,-577.82,0.00021917,4]
[330264051,1719214309831,-500.0,0.00021917,4]
[330264052,1719214309840,-151.0,0.00021917,3]
[330264053,1719214309849,-500.0,0.00021917,4]
[330264054,1719214309859,-500.0,0.00021917,4]
[330264055,1719214309868,-6356.44,0.00021917,4]
[330264056,1719214309877,-500.0,0.00021917,4]
[330264057,1719214309887,-500.0,0.00021917,4]
[330264058,1719214309897,-500.0,0.00021917,4]
[330264059,1719214309906,-4647.89,0.00021917,4]
[330264060,1719214309916,-3141.04,0.00021917,4]
[330264061,1719214309925,-556.29,0.00021917,4]
[330264062,1719214309935,-3586.73,0.00021917,4]
[330264063,1719214309944,-6185.28,0.00021917,4]
[330264064,1719214309954,-2892.33,0.00021917,4]
[330264065,1719214309964,-2282.5,0.00021917,4]
[330264066,1719214309973,-683.5,0.00021917,4]
[330264067,1719214309982,-650.76,0.00021917,4]
[330264068,1719214309991,-51483.53,0.00021917,4]
[330264069,1719214310001,-500.0,0.00021917,4]
[330264070,1719214310011,-500.0,0.00021917,4]
[330264071,1719214310021,-500.0,0.00021917,4]
[330264072,1719214310031,-34800.51,0.00021917,4]
[330264073,1719214310040,-6749.81,0.00021917,4]
[330264074,1719214310050,-4567.01,0.00021917,4]
[330264075,1719214310060,-5105.2,0.00021917,4]
[330264076,1719214310070,-500.0,0.00021917,4]
[330264077,1719214310079,-644.74,0.00021917,4]
[330264078,1719214310088,-500.0,0.00021917,4]
[330264079,1719214310097,-510.85,0.00021917,4]
[330264080,1719214310107,-1219.98,0.00021917,4]
[330264081,1719214310116,-500.0,0.00021917,4]
[330264082,1719214310125,-1000.0,0.00021917,4]
[330264083,1719214310135,-907.22,0.00021917,4]
[330264084,1719214310144,-500.0,0.00021917,4]
[330264085,1719214310154,-500.0,0.00021917,4]
[330264086,1719214310163,-2994.74,0.00021917,4]
[330264087,1719214310172,-500.0,0.00021917,4]
[330264088,1719214310182,-3411.07,0.00021917,4]
[330264089,1719214310191,-500.0,0.00021917,4]
[330264090,1719214310201,-500.0,0.00021917,4]
[330264091,1719214310211,-1945.6,0.00021917,4]
[330264092,1719214310221,-500.0,0.00021917,4]
[330264093,1719214310230,-4149.12,0.00021917,4]
[330264094,1719214310240,-596.04212445,0.00021917,4]
[330264095,1719214310249,-500.0,0.00021917,4]
[330264096,1719214310259,-1616.06,0.00021917,4]
[330264097,1719214310269,-571.69,0.00021917,4]
[330264098,1719214310278,-887.92,0.00021917,4]
[330264099,1719214310288,-4933.56,0.00021917,4]
[330264100,1719214310298,-2530.75,0.00021917,4]
[330264101,1719214310309,-2643.82,0.00021917,4]
[330264102,1719214310318,-547.62,0.00021917,4]
[330264103,1719214310327,-500.0,0.00021917,4]
[330264104,1719214310337,-700.46,0.00021917,4]
[330264105,1719214310347,-500.0,0.00021917,4]
[330264106,1719214310356,-6552.44,0.00021917,4]
[330264107,1719214310365,-1255.88,0.00021917,4]
[330264108,1719214310375,-2119.33,0.00021917,4]
[330264109,1719214310384,-5199.55,0.00021917,4]
[330264110,1719214310393,-807.64,0.00021917,4]
[330264111,1719214310402,-500.0,0.00021917,4]
[330264112,1719214310411,-5313.84,0.00021917,4]
[330264113,1719214310420,-10226.28,0.00021917,4]
[330264114,1719214310430,-9675.59,0.00021917,4]
[330264115,1719214310440,-1578.26,0.00021917,4]
[330264116,1719214310450,-2304.39,0.00021917,4]
[330264117,1719214310460,-1515.67,0.00021917,4]
[330264118,1719214310469,-860.22,0.00021917,4]
[330264119,1719214310479,-1413.93,0.00021917,4]
[330264120,1719214310488,-2577.54,0.00021917,4]
[330264121,1719214310498,-500.0,0.00021917,4]
[330264122,1719214310508,-500.0,0.00021917,4]
[330264123,1719214310518,-2480.87,0.00021917,4]
[330264124,1719214310528,-3485.47,0.00021917,4]
[330264125,1719214310537,-1675.26,0.00021917,4]
[330264126,1719214310547,-500.0,0.00021917,4]
[330264127,1719214310558,-6936.84,0.00021917,4]
[330264128,1719214310568,-1833.59,0.00021917,4]
[330264129,1719214310578,-500.0,0.00021917,4]
[330264130,1719214310587,-978.19,0.00021917,4]
[330264131,1719214310597,-906.01,0.00021917,4]
[330264132,1719214310607,-500.0,0.00021917,4]
[330264133,1719214310616,-1148.69,0.00021917,4]
[330264134,1719214310631,-1282.27,0.00021917,4]
[330264135,1719214310640,-5805.71,0.00021917,4]
[330264136,1719214310651,-3390.41,0.00021917,4]
[330264137,1719214310662,-500.0,0.00021917,4]
[330264138,1719214310671,-4960.34,0.00021917,4]
[330264139,1719214310681,-3724.94,0.00021917,4]
[330264140,1719214310691,-631.73,0.00021917,4]
[330264141,1719214310703,-2618.38,0.00021917,4]
[330264142,1719214310713,-6686.69,0.00021917,4]
[330264143,1719214310723,-3549.79,0.00021917,4]
[330264144,1719214310732,-683.84,0.00021917,4]
[330264145,1719214310742,-3505.82,0.00021917,4]
[330264146,1719214310752,-4601.22,0.00021917,4]
[330264147,1719214310762,-552.16121685,0.00021917,2]
[330264148,1719214310772,-3007.89,0.00021917,4]
[330264149,1719214310782,-500.0,0.00021917,4]
[330264150,1719214310792,-5517.01,0.00021917,4]
[330264151,1719214310801,-3237.39,0.00021917,4]
[330264152,1719214310814,-5108.38,0.00021917,4]
[330264153,1719214310824,-2162.86,0.00021917,4]
[330264154,1719214310833,-500.0,0.00021917,4]
[330264155,1719214310846,-776.23,0.00021917,4]
[330264156,1719214310856,-1479.77,0.00021917,4]
[330264157,1719214310865,-912.03701501,0.00021917,3]
[330264158,1719214310875,-822.04,0.00021917,4]
[330264159,1719214310885,-3213.19,0.00021917,4]
[330264160,1719214310894,-1437.16,0.00021917,4]
[330264161,1719214310904,-8580.64,0.00021917,4]
[330264162,1719214310913,-4077.0,0.00021917,4]
[330264163,1719214310923,-773.12,0.00021917,4]
[330264164,1719214310932,-522.29,0.00021917,4]
[330264165,1719214310942,-500.0,0.00021917,4]
[330264166,1719214310952,-1347.66,0.00021917,4]
[330264167,1719214310962,-3845.4,0.00021917,4]
[330264168,1719214310972,-520.44,0.00021917,4]
[330264169,1719214310982,-599.26,0.00021917,4]
[330264170,1719214310992,-653.28,0.00021917,4]
[330264171,1719214311001,-601.18,0.00021917,4]
[330264172,1719214311012,-4423.02,0.00021917,4]
[330264173,1719214311022,-1302.14,0.00021917,4]
[330264174,1719214311032,-1510.55,0.00021917,4]
[330264175,1719214311042,-4691.32,0.00021917,4]
[330264176,1719214311051,-1862.57,0.00021917,4]
[330264177,1719214311064,-500.0,0.00021917,4]
[330264178,1719214311074,-500.0,0.00021917,4]
[330264179,1719214311083,-3581.0,0.00021917,4]
[330264180,1719214311093,-4540.36,0.00021917,4]
[330264181,1719214311102,-3105.44,0.00021917,4]
[330264182,1719214311111,-500.0,0.00021917,4]
[330264183,1719214311121,-647.91,0.00021917,4]
[330264184,1719214311131,-775.75,0.00021917,4]
[330264185,1719214311140,-500.0,0.00021917,4]
[330264186,1719214311150,-551.02,0.00021917,4]
[330264187,1719214311160,-4542.28,0.00021917,4]
[330264188,1719214311170,-1450.78,0.00021917,4]
[330264189,1719214311179,-2168.61,0.00021917,4]
[330264190,1719214311189,-500.0,0.00021917,4]
[330264191,1719214311199,-500.0,0.00021917,4]
[330264192,1719214311208,-2528.62,0.00021917,4]
[330264193,1719214311218,-269.63738458,0.00021917,4]
[330264194,1719214311228,-500.0,0.00021917,2]
[330264195,1719214311238,-3511.4,0.00021917,4]
[330264196,1719214311248,-663.3,0.00021917,4]
[330264197,1719214311258,-500.0,0.00021917,4]
[330264198,1719214311268,-5536.21,0.00021917,4]
[330264199,1719214311278,-500.0,0.00021917,4]
[330264200,1719214311287,-2051.83,0.00021917,4]
[330264201,1719214311297,-3788.32,0.00021917,4]
[330264202,1719214311309,-500.0,0.00021917,4]
[330264203,1719214311319,-500.0,0.00021917,4]
[330264204,1719214311330,-738.9,0.00021917,4]
[330264205,1719214311340,-635.92,0.00021917,4]
[330264206,1719214311350,-2983.25,0.00021917,4]
[330264207,1719214311360,-461.56324987,0.00021917,4]
[330264208,1719214311371,-153.34778481,0.00021917,4]
[330264209,1719214311381,-150.0,0.00021917,4]
[330264210,1719214311391,-150.0,0.00021917,4]
[330264211,1719214311401,-200.15720018,0.00021917,4]
[330264212,1719214311412,-150.0,0.00021917,4]
[330264213,1719214311422,-270.40565031,0.00021917,4]
[330264214,1719214311431,-150.0,0.00021917,4]
[330264215,1719214311441,-150.0,0.00021917,4]
[330264216,1719214311451,-150.0,0.00021917,4]
[330264217,1719214311461,-150.0,0.00021917,4]
[330264218,1719214311470,-160.57082037,0.00021917,4]
[330264219,1719214311480,-198.3912626,0.00021917,4]
[330264220,1719214311490,-150.0,0.00021917,4]
[330264221,1719214311500,-1586.03,0.00021918,2]
[330264222,1719214311510,-500.0,0.00021918,2]
[330264223,1719214311520,-500.0,0.00021918,2]
[330264224,1719214311530,-500.0,0.00021918,2]
[330264225,1719214311539,-500.0,0.00021918,2]
[330264226,1719214311549,-500.0,0.00021918,2]
[330264227,1719214311560,-500.0,0.00021918,2]
[330264228,1719214311570,-500.0,0.00021918,2]
[330264229,1719214311580,-500.0,0.00021918,2]
[330264230,1719214311590,-500.0,0.00021918,2]
[330264231,1719214311600,-500.0,0.00021918,2]
[330264232,1719214311610,-500.0,0.00021918,2]
[330264233,1719214311623,-500.0,0.00021918,2]
[330264234,1719214311634,-500.0,0.00021918,2]
[330264235,1719214311644,-500.0,0.00021918,2]
[330264236,1719214311654,-500.0,0.00021918,2]
[330264237,1719214311664,-500.0,0.00021918,2]
[330264238,1719214311674,-500.0,0.00021918,2]
[330264239,1719214311684,-500.0,0.00021918,2]
[330264240,1719214311694,-500.0,0.00021918,2]
[330264241,1719214311706,-500.0,0.00021918,2]
[330264242,1719214311716,-151.0,0.00021918,2]
[330264243,1719214311725,-151.0,0.00021918,2]
[330264244,1719214311735,-151.0,0.00021918,2]
[330264245,1719214311745,-151.0,0.00021918,2]
[330264246,1719214311755,-155.663412,0.00021918,2]
[330264247,1719214311764,-630.85,0.00021918,2]
[330264248,1719214311774,-151.0,0.00021918,2]
[330264249,1719214311784,-151.0,0.00021918,2]
[330264250,1719214311794,-151.0,0.00021918,2]
[330264251,1719214311804,-151.0,0.00021918,2]
[330264252,1719214311814,-266.731122,0.00021918,2]
[330264253,1719214311824,-3394.15,0.00021918,2]
[330264254,1719214311834,-150.0,0.00021918,2]
[330264255,1719214311844,-150.0,0.00021918,2]
[330264256,1719214311854,-150.0,0.00021918,2]
[330264257,1719214311864,-150.0,0.00021918,2]
[330264258,1719214311873,-150.0,0.00021918,2]
[330264259,1719214311883,-150.0,0.00021918,2]
[330264260,1719214311893,-150.0,0.00021918,2]
[330264261,1719214311902,-150.0,0.00021918,2]
[330264262,1719214311912,-150.0,0.00021918,2]
[330264263,1719214311921,-150.0,0.00021918,2]
[330264264,1719214311931,-150.0,0.00021918,2]
[330264265,1719214311940,-150.0,0.00021918,2]
[330264266,1719214311952,-150.0,0.00021918,2]
[330264267,1719214311962,-183.58255772,0.00021918,2]
[330264268,1719214311972,-500.0,0.00021918,2]
[330264269,1719214311982,-500.0,0.00021918,2]
[330264270,1719214311992,-500.0,0.00021918,2]
[330264271,1719214312002,-500.0,0.00021918,2]
[330264272,1719214312012,-500.0,0.00021918,2]
[330264273,1719214312021,-500.0,0.00021918,2]
[330264274,1719214312031,-150.0,0.00021918,2]
[330264275,1719214312040,-150.0,0.00021918,2]
[330264276,1719214312049,-150.0,0.00021918,2]
[330264277,1719214312060,-150.0,0.00021918,2]
[330264278,1719214312071,-167.10727462,0.00021918,2]